{"text_format":"1","workbook":"xlsx","n_sheets":9,"sheets":["DatiGen","Computo Metrico","Controlli","Attestazione x Fornitura_Posa","Asseverazione x Spesa Ammessa","Listino Base","Decreto MITE","Allegato A","FAQ Enea e MITE"],"not_rendered":{"charts":0,"images":20,"macros":1,"external_links":0,"defined_names":42,"comments":1,"pivot_tables":0},"unopened":[],"bounds":{"document_bytes":16777216,"sheet_cells":100000,"rows_first":2000,"rows_last":500,"rows_between":2000,"halvings":0,"cell_chars":16384,"cell_head_chars":4096},"cells_cut":0,"cells_raw":0,"read":"whole","date_system":"1900"}

{"sheet":"DatiGen","index":0,"n_rows":43,"n_cols":26,"rows_kept":43,"cut":false,"hidden":false,"merged":[[33,3,33,13],[31,3,31,4],[4,18,4,23],[18,16,18,25],[19,16,19,25],[16,16,16,25],[15,16,15,25],[17,16,17,25],[5,18,5,20],[5,22,5,25],[5,16,5,17],[10,18,10,20],[10,22,10,25],[25,5,25,6],[19,8,19,9],[6,18,6,25],[38,1,38,3],[38,4,38,5],[38,9,38,10],[19,1,19,2],[19,3,19,7],[19,10,19,13],[29,1,29,2],[23,3,23,13],[24,1,24,2],[24,3,24,13],[25,12,25,13],[31,12,31,13],[30,1,30,13],[29,5,29,7],[28,1,28,13],[33,1,33,2],[17,1,17,2],[17,3,17,7],[17,10,17,13],[13,8,13,9],[18,8,18,9],[17,8,17,9],[13,1,13,2],[13,3,13,7],[13,10,13,13],[16,1,16,2],[16,3,16,13],[7,18,7,25],[14,24,14,25],[13,24,13,25],[14,18,14,22],[13,18,13,22],[12,18,12,25],[4,16,4,17],[6,16,6,17],[7,16,7,17],[11,16,11,17],[8,16,8,17],[9,16,9,17],[10,16,10,17],[7,1,7,2],[7,3,7,13],[36,8,36,9],[36,1,36,3],[11,18,11,23],[31,5,31,11],[8,18,8,20],[8,22,8,25],[9,18,9,20],[9,22,9,25],[23,1,23,2],[18,1,18,2],[18,3,18,7],[18,10,18,13],[25,8,25,9],[25,3,25,4],[1,1,1,10],[14,16,14,17],[12,16,12,17],[29,3,29,4],[5,1,5,13],[6,1,6,13],[11,1,11,2],[11,3,11,13],[12,1,12,2],[12,3,12,13],[13,16,13,17],[22,1,22,2],[22,3,22,13],[4,1,4,13],[10,1,10,2],[10,3,10,13]]}
[]
[null,null,null,null,null,null,null,null,null,null,null,"ACPM","V.ne","2022.1.0"]
[]
[null,"Lavori di",null,null,null,null,null,null,null,null,null,null,null,null,null,null,"Tecnico Asseveratore"]
[null,"Sostituzione infissi nell'appartamento a piano secondo del fabbricato sito a XXXXXXXXXXXXX in via XXXXX N.27",null,null,null,null,null,null,null,null,null,null,null,null,null,null,"Titolo",null,"Ingegnere",null,null,null,null,null,"abbr.","Ing."]
[null,null,null,null,null,null,null,null,null,null,null,null,null,null,null,null,"Cognome",null,null,null,null,"Nome","mario"]
[null,null,null,null,null,null,null,null,null,null,null,null,null,null,null,null,"Indirizzo"]
[null,"Titolo Abilitativo",null,"CILA Prot. N. XXXXX del XXXXXXX",null,null,null,null,null,null,null,null,null,null,null,null,"Città"]
[null,null,null,null,null,null,null,null,null,null,null,null,null,null,null,null,"Nato a",null,null,null,null,"il"]
[null,"Fornitore / Ditta",null,null,null,null,null,null,null,null,null,null,null,null,null,null,"Residente a",null,null,null,null,"Indirizzo"]
[null,"Rag. Sociale",null,"SIM srl",null,null,null,null,null,null,null,null,null,null,null,null,"Codice Fiscale",null,null,null,null,"P.Iva"]
[null,"Indirizzo",null,"Via XXXXXXX",null,null,null,null,null,null,null,null,null,null,null,null,"Albo / N.Iscrizione",null,"Ordine degli Ingegneri della provincia di XXXXXXXXXXX",null,null,null,null,null,"N.",1]
[null,"Città",null,"90020 Paese (PR)",null,null,null,null,null,null,null,null,null,null,null,null,"Mail / PEC"]
[null,"Codice Fiscale",null,"01110101010",null,null,null,null,"P.Iva",null,"011110101010",null,null,null,null,null,"Polizza Professionale",null,"A121C526113-LB",null,null,null,null,"Scadenza","2022-09-26"]
[null,null,null,null,null,null,null,null,null,null,null,null,null,null,null,null,"Compagnia Assicurat.",null,"Lloyd’s Insurance Company S.A.",null,null,null,null,"Massimale",1500000]
[null,"Committente",null,null,null,null,null,null,null,null,null,null,null,null,null,true]
[null,"Cognome Nome",null,"Tizio Caio",null,null,null,null,null,null,null,null,null,null,null,1,"Versione Demo"]
[null,"Nato a",null,"Palermo",null,null,null,null,"il",null,"1990-07-23",null,null,null,null,null,"PC-MARIO1-SOPRA"]
[null,"Residente a",null,"Castellana Sicula",null,null,null,null,"Indirizzo",null,"Via YYYYY",null,null,null,null,null,"Acquista ACPM"]
[null,"Codice Fiscale",null,"TZICAI",null,null,null,null,"Tel./Mail",null,null,null,null,null,null,null,"https://www.madosoft.it/prodotti/superbonus110/spesa-detraibile-ammessa/asseverazione-congruita-spese"]
[]
[null,"Immobile"]
[null,"Tipologia",null,"Unità Immobiliare"]
[null,"Indirizzo",null,"Via ZZZZZ"]
[null,"Città",null,"Palermo (PA)"]
[null,"Dati Catastali: FOGLIO",null,12,null,"P.LLA",null,25,"SUB.",null,6,"CAT.","A/4 "]
[]
[null,"Tipologia Intervento"]
[null,"Isolamento pareti perimetrali - Zone A, B e C - Esterno/Diffusa cond"]
[null,"Superf. Riscaldata    mq.",null,120,null,true,null,null,true,null,null,false]
[null,"Isolamento pareti perimetrali - Zone A, B e C - Esterno/Diffusa cond"]
[null,"Superficie","mq.",5,null,"Spesa Ammissibile DL.34/2020 e smi : ",null,null,null,null,null,null,0]
[]
[null,"Riferimento Prezzi ",null,"Prezzario Regionale 2022, Prezzario DEI"]
[]
[null,"Spese specifiche",null,null,null,null,null,null,null,null,null,{"$f":"L37/I37","v":0.10000000000000002}]
[null,"Fattura per Fornitura e posa N.",null,null,163,"del","2022-06-01","Importo",{"$f":"ImportoComputo_FP+ImportoComputo_SicFP","v":14490.37},null,"IVA",{"$f":"ImpFatForn*0.1","v":1449.0370000000003},"Totale",{"$f":"ImpFatForn+ImpIvaFat","v":15939.407000000001}]
[]
[null,"Spese Tecniche:",null,null,"Imponibile",null,{"$f":"160/1.22","v":131.14754098360655},"Aliq. Iva",0.22,"IVA",null,{"$f":"G39*I39","v":28.852459016393439},"Totale",{"$f":"G39+L39","v":160}]
[]
[]
[]
[null,null,null,null,null,null,null,null,null,null,null,null,null,null,null,null,"Versione Demo"]

{"sheet":"Computo Metrico","index":1,"n_rows":53,"n_cols":26,"rows_kept":53,"cut":false,"hidden":false,"merged":[[49,2,49,3],[48,2,48,3],[42,1,42,15],[45,8,45,9],[46,8,46,9],[47,12,48,15],[46,6,46,7],[45,6,45,7],[30,2,30,7],[19,2,19,7],[20,2,20,7],[21,2,21,7],[22,2,22,7],[23,2,23,7],[24,2,24,7],[25,2,25,7],[26,2,26,7],[27,2,27,7],[38,2,38,7],[39,2,39,7],[31,2,31,7],[32,2,32,7],[33,2,33,7],[34,2,34,7],[1,23,10,23],[1,24,10,24],[1,25,10,25],[44,8,44,9],[1,21,10,21],[1,19,10,19],[1,20,10,20],[5,2,5,9],[7,2,7,11],[44,6,44,7],[35,2,35,7],[36,2,36,7],[18,2,18,7],[1,18,10,18],[1,15,10,15],[1,12,10,12],[1,13,10,13],[1,14,10,14],[50,8,50,15],[49,8,49,9],[3,1,3,11],[4,1,4,11],[44,12,44,15],[46,12,46,15],[49,12,49,15],[47,6,47,7],[48,6,48,7],[47,8,47,9],[48,8,48,9],[45,12,45,15],[28,2,28,7],[29,2,29,7],[1,0,39,0],[7,1,9,1],[16,2,16,7],[17,2,17,7],[2,1,2,11],[1,1,1,11],[11,2,11,7],[12,2,12,7],[13,2,13,7],[14,2,14,7],[15,2,15,7],[6,2,6,11],[8,2,8,11],[9,2,9,11],[10,2,10,7],[37,2,37,7]]}
[]
[{"$f":"CONCATENATE(\"ACPM  Vers.\",Versione,\" ©2022 SIM srl\")","v":"ACPM  Vers.2022.1.0 ©2022 SIM srl"},"COMPUTO METRICO",null,null,null,null,null,null,null,null,null,null,"Incidenza Manodopera","Fornitura e Posa","Altro / Opere complementari","Opere Installazione / Oneri Sicurezza",null,null,"Importo Manodopera","Importo Fornitura e Posa","Importo Altre Opere","Importo Sicurezza",null,"Manopera Voci Fornitura e Posa","Manopera Voci Altro","Manopera Voci Sicurezza"]
[null,{"$f":"IF(DatiGen!B5<>\"\",CONCATENATE(\"Lavori di \",DatiGen!B5),\"\")","v":"Lavori di Sostituzione infissi nell'appartamento a piano secondo del fabbricato sito a XXXXXXXXXXXXX in via XXXXX N.27"}]
[null,{"$f":"IF(DatiGen!B6<>\"\",DatiGen!B6,\"\")","v":""}]
[null,{"$f":"IF(DatiGen!B7<>\"\",DatiGen!B7,\"\")","v":""}]
[null,{"$f":"DatiGen!B28","v":"Tipologia Intervento"},{"$f":"DatiGen!B29","v":"Isolamento pareti perimetrali - Zone A, B e C - Esterno/Diffusa cond"},null,null,null,null,null,null,null,{"$f":"CONCATENATE(DatiGen!B32,\" \",DatiGen!C32)","v":"Superficie mq."},{"$f":"IF(nLicenza=\"Versione Demo\",1000,DatiGen!D32)","v":1000}]
[null,{"$f":"DatiGen!B16","v":"Committente"},{"$f":"DatiGen!D17","v":"Tizio Caio"}]
[null,{"$f":"DatiGen!Q4","v":"Tecnico Asseveratore"},{"$f":"CONCATENATE(DatiGen!Z5,\" \", DatiGen!S6, \" \", DatiGen!W6)","v":"Ing.  mario"}]
[null,null,{"$f":"CONCATENATE(DatiGen!S7,\" , \",DatiGen!S8)","v":" , "}]
[null,null,{"$f":"CONCATENATE(\"Iscritto a : \",DatiGen!S12)","v":"Iscritto a : Ordine degli Ingegneri della provincia di XXXXXXXXXXX"}]
[null,"Tariffa","Descrizione",null,null,null,null,null,"U.M.","Quantità","Prezzo Un.","Prezzo"]
[null,{"$f":"'Listino Base'!B3","v":"DEI A25114"},{"$f":"'Listino Base'!D3","v":"Rimozione infissi esistenti, sportelli, persiane, ecc., calcolato sulla superficie, inclusa parte vetrata, telaio, controtelaio, smuratura"},null,null,null,null,null,{"$f":"'Listino Base'!E3","v":"mq"},0,{"$f":"'Listino Base'!F3","v":19.86},{"$f":"K12*J12","v":0},1,false,true,false,null,{"$f":"IF(SUM(T12:V12)<>L12,\"Indicare ▣ 1 voce\",\"\")","v":""},{"$f":"M12*L12","v":0},{"$f":"IF(N12=TRUE,L12,0)","v":0},{"$f":"IF(O12=TRUE,L12,0)","v":0},{"$f":"IF(P12=TRUE,L12,0)","v":0},null,{"$f":"IF(N12=TRUE,L12*M12,0)","v":0},{"$f":"IF(O12=TRUE,L12*M12,0)","v":0},{"$f":"IF(P12=TRUE,L12*M12,0)","v":0}]
[null,{"$f":"'Listino Base'!B4","v":"21.01.25"},{"$f":"'Listino Base'!D4","v":"Trasporto alle pubbliche discariche del comune in cui si eseguono i lavori ….,  esclusi  gli   oneri  di conferimento a discarica."},null,null,null,null,null,{"$f":"'Listino Base'!E4","v":"mc"},0,{"$f":"'Listino Base'!F4","v":32.26},{"$f":"K13*J13","v":0},0,false,true,false,null,{"$f":"IF(SUM(T13:V13)<>L13,\"Indicare ▣ 1 voce\",\"\")","v":""},0,0,0,0,null,0,0,0]
[null,{"$f":"'Listino Base'!B5","v":"DEI - A25136.a"},{"$f":"'Listino Base'!D5","v":"Oneri conferimento a discarica"},null,null,null,null,null,{"$f":"'Listino Base'!E5","v":"ton"},0,{"$f":"'Listino Base'!F5","v":18},{"$f":"K14*J14","v":0},0,false,true,false,null,"",0,0,0,0,null,0,0,0]
[null,"DEI C25076e","Portafinestra PVC 2 ante, a battente N.4 x 1,18 x 2,29",null,null,null,null,null,"mq",1,14280.33,{"$f":"K15*J15","v":14280.33},0.27639999999999998,true,false,false,null,"",3947.0832119999995,14280.33,0,0,null,3947.0832119999995,0,0]
[null,"AP.1","Zanzariera laterale a molla N.4 x 1,18 x 2,29",null,null,null,null,null,"mq",0,40,{"$f":"K16*J16","v":0},0.22,true,false,false,null,"",0,0,0,0,null,0,0,0]
[null,"C25076a","Finestra PVC a 1 anta, a battente N.2 x 0,66 x 1,29",null,null,null,null,null,"mq",0,445.52,0,0.22,true,false,false,null,"",0,0,0,0,null,0,0,0]
[null,"DEI C25126","Sovrapprezzo per ciascuna anta ribalta N.4+2",null,null,null,null,null,"cad",0,70,0,0.22,true,false,false,null,"",0,0,0,0,null,0,0,0]
[null,"DEI C13115b","Controtelai in acciaio zincato a caldo L=10/15 cm",null,null,null,null,null,"mq",0,36.96,0,0.26,true,false,false,null,"",0,0,0,0,null,0,0,0]
[null,"DEI A25135b","Tiro in alto  o  Tiro in basso mc. 2 x (10,81+1,70)x0,10",null,null,null,null,null,"mc",{"$f":"2*J13","v":0},34.82,0,0.96,true,false,false,null,"",0,0,0,0,null,0,0,0]
[null,"DEI C43024","Vetrocamera 6/7 + 16 + 6/7 antinfortunistico selettivo con Argon",null,null,null,null,null,"mq",0,145.5,0,0,true,false,false,null,"",0,0,0,0,null,0,0,0]
[null,"DEI N04137a","Sollevatore telescopico con cestello",null,null,null,null,null,"ora",1,210.04,210.04,0,false,false,true,null,"",0,0,0,210.04,null,0,0,0]
[null,null,null,null,null,null,null,null,null,0,0,{"$f":"K23*J23","v":0},null,false,false,false,null,"",0,0,0,0,null,0,0,0]
[null,null,null,null,null,null,null,null,null,0,0,0,null,false,false,false,null,"",0,0,0,0,null,0,0,0]
[null,null,null,null,null,null,null,null,null,0,0,0,null,false,false,null,null,"",0,0,0,0,null,0,0,0]
[null,null,null,null,null,null,null,null,null,0,0,0,null,false,false,null,null,"",0,0,0,0,null,0,0,0]
[null,null,null,null,null,null,null,null,null,0,0,0,null,false,false,null,null,"",0,0,0,0,null,0,0,0]
[null,null,null,null,null,null,null,null,null,0,0,0,null,false,false,false,null,"",0,0,0,0,null,0,0,0]
[null,null,null,null,null,null,null,null,null,0,0,0,null,false,false,false,null,"",0,0,0,0,null,0,0,0]
[null,null,null,null,null,null,null,null,null,0,0,0,null,false,false,false,null,"",0,0,0,0,null,0,0,0]
[null,null,null,null,null,null,null,null,null,0,0,0,null,false,false,false,null,"",0,0,0,0,null,0,0,0]
[null,null,null,null,null,null,null,null,null,0,0,0,null,false,false,false,null,"",0,0,0,0,null,0,0,0]
[null,null,null,null,null,null,null,null,null,0,0,0,null,false,false,false,null,"",0,0,0,0,null,0,0,0]
[null,null,null,null,null,null,null,null,null,0,0,0,null,false,false,false,null,"",0,0,0,0,null,0,0,0]
[null,null,null,null,null,null,null,null,null,0,0,0,null,false,false,false,null,"",0,0,0,0,null,0,0,0]
[null,null,null,null,null,null,null,null,null,0,0,0,null,false,false,false,null,"",0,0,0,0,null,0,0,0]
[null,null,null,null,null,null,null,null,null,0,0,0,null,false,false,false,null,"",0,0,0,0,null,0,0,0]
[null,null,null,null,null,null,null,null,null,0,0,0,null,false,false,false,null,"",0,0,0,0,null,0,0,0]
[null,null,null,null,null,null,null,null,null,0,0,0,null,false,false,false,null,"",0,0,0,0,null,0,0,0]
[null,null,null,null,null,null,null,null,null,0,0,0,null,false,false,false,null,"",0,0,0,0,null,0,0,0]
[null,null,null,null,null,null,null,null,null,null,null,{"$f":"SUM(L12:L40)","v":14490.37},null,null,null,null,null,null,{"$f":"SUM(S12:S40)","v":3947.0832119999995},{"$f":"SUM(T12:T40)","v":14280.33},0,210.04,null,{"$f":"SUM(X12:X40)","v":3947.0832119999995},0,0]
[]
[null,"Riepilogo Computo Metrico"]
[]
[null,null,null,"Sommano i Lavori : ",{"$f":"L41","v":14490.37},"è","di cui ",null,"Importo",null,"Materiale","Manodopera","Opere Installaz./Sicurezza"]
[null,null,"IVA",0.12,{"$f":"E45*D46","v":1738.8444},null,"Fornitura e Posa",null,{"$f":"T41","v":14280.33},null,{"$f":"I46-L46","v":10333.246788},{"$f":"X41","v":3947.0832119999995},{"$f":"V41*I46/(E45-V41)","v":210.04}]
[null,null,null,"Totale : ",{"$f":"SUM(E45:E46)","v":16229.214400000001},null,"Altro / Opere Complementari",null,{"$f":"U41","v":0},null,{"$f":"I47-L47","v":0},{"$f":"Y41","v":0},{"$f":"V41*I47/(E45-V41)","v":0}]
[null,null,null,null,null,null,"Opere Installazione/Oneri Sicurezza x Fornitura e Posa",null,{"$f":"M46","v":210.04},null,{"$f":"I48-L48","v":210.04},{"$f":"IF(V41<>0,Z41*I48/V41,0)","v":0}]
[null,null,"Spese Tecniche : imponibile ",null,{"$f":"DatiGen!G39","v":131.14754098360655},null,"Opere Installazione/Oneri Sicurezza x Altro/Complem.",null,{"$f":"M47","v":0},null,{"$f":"I49-L49","v":0},{"$f":"IF(V41<>0,Z41*I49/V41,0)","v":0}]
[null,null,"IVA ",null,{"$f":"DatiGen!L39","v":28.852459016393439},null,null,null,{"$f":"SUM(I46:J49)","v":14490.37},null,{"$f":"SUM(K46:K47)","v":10333.246788},{"$f":"SUM(L46:L47)","v":3947.0832119999995},{"$f":"SUM(M46:P49)","v":210.04}]
[null,null,null,"Totale ",{"$f":"SUM(E49:E50)","v":160},null,null,null,{"$f":"IF(M50<>V41,\"Attenzione! Opere Installazione/Oneri Sicurezza Non Ripartiti correttamente\",\"\")","v":""}]
[]
[null,null,null,"Importo Complessivo : ",{"$f":"IF(nLicenza=\"Versione Demo\",-10,TotaleSpeseTecniche+TotaleLavori)","v":-10}]

{"sheet":"Controlli","index":2,"n_rows":58,"n_cols":26,"rows_kept":58,"cut":false,"hidden":false,"merged":[[21,8,21,9],[48,1,48,6],[18,1,18,4],[19,1,19,4],[20,1,20,4],[24,1,24,2],[28,13,28,15],[54,13,54,15],[24,9,24,10],[50,7,50,9],[47,10,47,11],[48,10,48,11],[49,10,49,11],[50,10,50,11],[46,7,46,9],[47,7,47,9],[48,7,48,9],[49,7,49,9],[24,7,24,8],[46,12,46,15],[18,21,19,21],[18,18,19,18],[18,19,19,19],[18,17,19,17],[26,13,26,15],[19,13,19,15],[20,13,20,15],[18,13,18,15],[21,17,21,24],[24,17,24,24],[24,13,24,15],[21,13,21,15],[23,13,23,15],[57,13,57,15],[53,13,53,15],[50,13,50,15],[52,13,52,15],[47,13,47,15],[48,13,48,15],[49,13,49,15],[56,13,56,15],[2,2,2,4],[2,5,2,15],[6,0,24,0],[32,0,53,0],[29,13,29,15],[31,13,31,15],[14,1,14,12],[14,13,14,15],[23,1,23,12],[17,1,17,12],[17,13,17,15],[15,13,15,15],[15,1,15,12],[18,7,18,12],[24,11,24,12],[46,10,46,11]]}
[]
[null,{"$f":"DatiGen!B5","v":"Sostituzione infissi nell'appartamento a piano secondo del fabbricato sito a XXXXXXXXXXXXX in via XXXXX N.27"}]
[null,"Committente",{"$f":"DatiGen!D17","v":"Tizio Caio"},null,null,{"$f":"CONCATENATE(DatiGen!K19,\" \",DatiGen!D19)","v":"Via YYYYY Castellana Sicula"}]
[]
[null,"VERIFICA 1 - Attestazione per Fornitura e Posa\"",null,null,null,null,"Ditta:",{"$f":"CONCATENATE(DatiGen!D11,\" - \",DatiGen!D13)","v":"SIM srl - 90020 Paese (PR)"}]
[]
[{"$f":"CONCATENATE(\"ACPM  Vers.\",Versione,\" ©2022 SIM srl\")","v":"ACPM  Vers.2022.1.0 ©2022 SIM srl"}]
[]
[]
[]
[]
[]
[]
[]
[null,"CONTROLLO 1 - Opera Compiuta / Prezzario",null,null,null,null,null,null,null,null,null,null,null,"Importo Netto"]
[null,{"$f":"CONCATENATE(\"Importo Opera Compiuta (Computo Metrico) determinato con \",IF(DatiGen!D34<>\"\",DatiGen!D34,\" ??\"))","v":"Importo Opera Compiuta (Computo Metrico) determinato con Prezzario Regionale 2022, Prezzario DEI"},null,null,null,null,null,null,null,null,null,null,null,{"$f":"'Computo Metrico'!E45","v":14490.37},null,null,{"$f":"IF(DatiGen!D34<>\"\",\"☺\",\"🙁\")","v":"☺"},{"$f":"IF(DatiGen!D34<>\"\",\"\",\"Specificare Prezzari di Riferimento in DatiGen cella D20\")","v":""}]
[]
[null,"CONTROLLO 2 - DM. Costi Massimi",null,null,null,null,null,null,null,null,null,null,null,"Importo Netto"]
[null,"Costo dei Beni Allegato A (fornitura)",null,null,null,180,{"$f":"CONCATENATE(\"/\",DatiGen!$C$32)","v":"/mq."}]
[null,"Opere relative alla installazione (sicurezza)",null,null,null,{"$f":"IF('Computo Metrico'!L6<>0,'Computo Metrico'!I48/'Computo Metrico'!L6,0)","v":0.21004},{"$f":"G19","v":"/mq."}]
[null,"Manodopera per l'installazione",null,null,null,{"$f":"IF('Computo Metrico'!L6<>0,'Computo Metrico'!L46/'Computo Metrico'!L6,0)","v":3.9470832119999995},{"$f":"G19","v":"/mq."}]
[null,null,null,null,null,{"$f":"SUM(F19:F21)","v":184.15712321199999},{"$f":"G19","v":"/mq."},{"$f":"CONCATENATE(\"x   \",DatiGen!C32)","v":"x   mq."},{"$f":"DatiGen!D32","v":5},null,null,null,null,{"$f":"IF(N19<>\"\",F22*I22+N19,F22*I22)","v":920.78561605999994},null,null,{"$f":"IF(N22>=SUM('Computo Metrico'!K46:P46),\"☺\",\"<\")","v":"<"},{"$f":" IF(Q22=\"<\",\"Importo da computo per Fornitura e Posa (Materiale+Manodopera+Sicurezza) =\",\"\")","v":"Importo da computo per Fornitura e Posa (Materiale+Manodopera+Sicurezza) ="},null,null,null,null,null,null,null,{"$f":"IF(Q22=\"<\",SUM('Computo Metrico'!K46:P46),\"\")","v":14490.37}]
[]
[null,"CONTROLLO 3 - Spesa Sostenuta",null,null,null,null,null,null,null,null,null,null,null,"Importo Netto"]
[null,"Fattura per Fornitura e posa N.",null,{"$f":"DatiGen!E37","v":163},"del",{"$f":"DatiGen!G37","v":"2022-06-01"},"Importo",{"$f":"IF(nLicenza=\"Versione Demo\",100,DatiGen!N37)","v":100},null,"di cui IVA ",null,{"$f":"IF(nLicenza=\"Versione Demo\",0,DatiGen!L37)","v":0},null,{"$f":"H25-L25","v":100},null,null,{"$f":"IF(N25=0,\"🙁\",IF(N25>N16,\">\",\"☺\"))","v":"☺"},{"$f":"IF(N25=0,\"Specificare Importo\",IF(N25>N16,\"Importo Opera Compiuta da Computo Metrico = \",\"\"))","v":""},null,null,null,null,null,null,null,{"$f":"IF(Q25=\">\",N16,\"\")","v":""}]
[]
[null,null,null,null,null,null,null,null,null,null,null,null,"Spesa Massima Ammissibile = MIN(controllo1; controllo2; fattura)",{"$f":"MIN(N16,N22,N25)","v":100}]
[]
[null,null,null,null,null,null,null,null,null,null,null,null,"Quota Fattura per Fornitura e Posa Eccedente Spesa Massima (a Carico del Cliente)",{"$f":"IF(nLicenza=\"Versione Demo\",0,IF(N25-N27>0,N25-N27,0))","v":0},null,null,{"$f":"IF(N29<>0,\"+\",\"\")","v":""}]
[null,null,null,null,null,null,null,null,null,null,null,null,{"$f":"IF(N29<>0,\"IVA\",\"\")","v":""},{"$f":"IF(N29<>0,N29*AliqIvaMed,\"\")","v":""},null,null,{"$f":"IF(N29<>0,\"=\",\"\")","v":""}]
[]
[null,"VERIFICA 2 - Asseverazione per Spesa Ammessa\"",null,null,null,null,null,null,null,null,null,null,null,{"$f":"IF(N29<>0,N29+N30,\"\")","v":""}]
[{"$f":"CONCATENATE(\"ACPM  Vers.\",Versione,\" ©2022 SIM srl\")","v":"ACPM  Vers.2022.1.0 ©2022 SIM srl"}]
[]
[]
[]
[]
[]
[]
[]
[]
[]
[]
[]
[]
[]
[null,"Spesa di Intervento",null,null,null,null,null,"Imponibile",null,null,"Iva",null,"Importo"]
[null,"Spesa massima ammissibile asseverata . . . . . . . . . . . . . . . . . . . . . . . . . . . .",null,null,null,null,null,{"$f":"N27","v":100},null,null,{"$f":"H48*'Computo Metrico'!D46","v":12},null,null,{"$f":"H48+K48","v":112}]
[null,{"$f":"IF(nLicenza=\"Versione Demo\",\". . . . . . . . . . .\",\"Prestazioni Professionali . . . . . . . . . . . . . . . . . . . . . . . . . . . . . . . . . . . . . . . . .\")","v":". . . . . . . . . . ."},null,null,null,null,null,{"$f":"'Computo Metrico'!E49","v":131.14754098360655},null,null,{"$f":"'Computo Metrico'!E50","v":28.852459016393439},null,null,{"$f":"H49+K49","v":160}]
[null,"Altri Costi / Opere complementari . . . . . . . . . . . . . . . . . . . . . . . . . . . . . . . . .",null,null,null,null,null,{"$f":"'Computo Metrico'!I47+'Computo Metrico'!I49","v":0},null,null,{"$f":"H50*'Computo Metrico'!D46","v":0},null,null,{"$f":"H50+K50","v":0}]
[null,null,null,null,null,null,null,{"$f":"SUM(H48:I50)","v":231.14754098360655},null,null,{"$f":"SUM(K48:L50)","v":40.852459016393439},null,null,{"$f":"SUM(N48:P50)","v":272}]
[]
[null,null,null,null,null,null,null,null,null,null,null,"Spesa di Intervento -      Decreto MITE","SI  =",{"$f":"N51","v":272}]
[null,null,null,null,null,null,null,null,null,null,null,"Spesa Massima ammissibile - Norma primaria ","SM =",{"$f":"IF(nLicenza=\"Versione Demo\",0,SpesaAmmessaDL34)","v":0}]
[null,null,null,null,null,null,null,null,null,null,null,null,"Spesa detraibile ammissibile = MIN(SI;SM) =",{"$f":"MIN(N51,N54)","v":0}]
[]
[null,null,null,null,null,null,null,null,null,null,null,null,"Importo Complessivo da Computo ",{"$f":"ImportoComplessivo","v":-10}]
[null,null,null,null,null,null,null,null,null,null,null,null,"Quota da Computo Eccedente Spesa Detraibile Ammissibile (a Carico del Cliente)",{"$f":"IF(N57-N55>0,N57-N55,0)","v":0}]

{"sheet":"Attestazione x Fornitura_Posa","index":3,"n_rows":48,"n_cols":19,"rows_kept":48,"cut":false,"hidden":false,"merged":[[15,9,15,10],[8,1,8,5],[8,7,8,10],[8,16,8,18],[1,1,1,18],[2,1,2,18],[3,1,3,18],[5,4,5,7],[5,9,5,13],[5,15,5,16],[6,1,6,4],[7,9,7,13],[37,18,46,18],[47,1,47,18],[10,1,10,18],[11,1,11,18],[12,1,12,18],[14,5,14,11],[14,15,14,18],[24,15,24,17],[23,11,23,12],[23,5,23,7],[21,2,21,18],[24,2,24,10],[24,11,24,14],[34,1,34,5],[19,1,19,18],[20,8,20,10],[36,12,36,18],[34,12,34,18],[26,1,26,18],[29,8,29,10],[29,11,29,15],[29,16,29,18],[35,12,35,18]]}
[]
[null,"ATTESTAZIONE DI CONGRUITA' DELLE SPESE"]
[null,"ex art. 121 comma 1-ter, lett. b) ed art. 119 comma 13 bis DL 34/2020 conv. L. 77/2020 e D.M. Costi Massimi 14/02/2022"]
[null,"(articolo 3 del D.P.R. n. 300/1992 e degli articoli 46 e 47 del D.P.R. n. 445/2000)"]
[]
[null,"Il sottoscritto",null,null,{"$f":"CONCATENATE(AbbrevTitoloTec,\" \",CognomeTec,\" \",NomeTec)","v":"Ing.  mario"},null,null,null,", nato a",{"$f":"PaeseNascTec","v":0},null,null,null,null,",  il",{"$f":"DataNascTec","v":"00:00:00"},null,"e  residente  a"]
[null,{"$f":"PaeseResTec","v":0},null,null,null,", in qualità di  tecnico asseveratore  ex  art. 121  comma 1-ter,  lett. b)  ed  art. 119  comma 13 bis  DL 34/2020"]
[null,"conv. L. 77/2020 ,  in relazione agli interventi eseguiti   a favore di ",null,null,null,null,null,null,null,{"$f":"DatiGen!D17","v":"Tizio Caio"},null,null,null,null,",  sull’unità  immobiliare    sita  a  "]
[null,{"$f":"DatiGen!D25","v":"Palermo (PA)"},null,null,null,null,", in",{"$f":"DatiGen!D24","v":"Via ZZZZZ"},null,null,null," e censita al N.C.E.U. del comune di ",null,null,null,null,{"$f":"B9","v":"Palermo (PA)"}]
[null,"al foglio",null,{"$f":"DatiGen!D26","v":12},"p.lla",{"$f":"DatiGen!H26","v":25},"sub.",{"$f":"DatiGen!K26","v":6},"Categoria",null,{"$f":"DatiGen!M26","v":"A/4 "},", relativamente ai lavori di :"]
[null,{"$f":"IF(DatiGen!B5<>\"\",DatiGen!B5,\"==========\")","v":"Sostituzione infissi nell'appartamento a piano secondo del fabbricato sito a XXXXXXXXXXXXX in via XXXXX N.27"}]
[null,{"$f":"IF(DatiGen!B6<>\"\",DatiGen!B6,\"==========\")","v":"=========="}]
[null,{"$f":"IF(DatiGen!B7<>\"\",DatiGen!B7,\"==========\")","v":"=========="}]
[null,"eseguiti dalla ditta",null,null,null,{"$f":"DatiGen!D11","v":"SIM srl"}]
[null,"di cui al titolo abilitativo,",null,null,null,{"$f":"DatiGen!D8","v":"CILA Prot. N. XXXXX del XXXXXXX"},null,null,null,null,null,null,"presentato al Comune di ",null,null,{"$f":"Q9","v":"Palermo (PA)"}]
[null,"per  l'importo  di  euro ",null,null,null,{"$f":"Controlli!H25","v":100},", di cui alla Fattura   N.",null,null,{"$f":"Controlli!D25","v":163},null,"del",{"$f":"Controlli!F25","v":"2022-06-01"},","]
[null,"consapevole delle implicazioni penali previste dall’articolo 76 del D.P.R. n. 445/2000 e delle conseguenze di cui all’articolo 21 della legge "]
[null," n. 241/1990 in caso di dichiarazioni mendaci o false attestazioni, ai sensi dell’articolo 3 del D.P.R. n. 300/1992 e degli articoli 46 e 47 del "]
[null,"citato D.P.R. n. 445/2000, sotto la propria responsabilità,"]
[null,"DICHIARA"]
[null,"•","di essere in possesso della qualifica professionale di ",null,null,null,null,null,{"$f":"DatiGen!S5","v":"Ingegnere"},null,null,"e di essere iscritto all’Albo professionale :"]
[null,null,{"$f":"CONCATENATE(DatiGen!S12,\" con il numero di matricola \",DatiGen!Z12,\";\")","v":"Ordine degli Ingegneri della provincia di XXXXXXXXXXX con il numero di matricola 1;"}]
[null,"•","di essere dotato di idonea copertura assicurativa ai sensi del D.L. 34/2020 convertito nella L.77/2020, ed in particolare di aver stipulato"]
[null,null,"la polizza professionale",null,null,{"$f":"DatiGen!S14","v":"A121C526113-LB"},null,null,"    con scadenza al",null,null,{"$f":"DatiGen!Y14","v":"2022-09-26"},null,", con la  compagnia assicurativa"]
[null,null,{"$f":"DatiGen!S15","v":"Lloyd’s Insurance Company S.A."},null,null,null,null,null,null,null,null,"con massimale pari a   euro",null,null,null,{"$f":"DatiGen!Y15","v":1500000}]
[null,null,"e che la medesima polizza è conforme ai requisiti previsti dal comma 14, del D.L. 34/2020 e s.m.i.;"]
[null,"ATTESTA"]
[null,"1. i requisiti tecnici sulla base del progetto e dell'effettiva realizzazione;"]
[null,"2. la congruità delle spese sostenute ed effettivamente realizzate con riferimento all’intervento sopra specificato, precisando che la Spesa"]
[null,"Detraibile Ammessa per la Fornitura e Posa è pari ad  EURO",null,null,null,null,null,null,{"$f":"IF(Controlli!N29>0,Controlli!N27*(1+AliqIvaMed),Controlli!H25)","v":100},null,null,{"$f":"IF(Controlli!N29>0,\", rimanendo a Carico Cliente   EURO\",\".\")","v":"."},null,null,null,null,{"$f":"IF(Controlli!N29>0,Controlli!N32,\"\")","v":""}]
[null,"Ai fini dell'asseverazione della congruità delle spese  si è fatto riferimento  ai valori massimi  per tipologia di intervento determinati con i "]
[null,"criteri previsti dal punto 13,  dell’allegato A  al  Decreto MISE 6 agosto 2020  (c.d. Decreto Requisiti) ,  emanato in conformità   all’art. 119 "]
[null,"comma 13, lettera a) DL 34/2020 e s.m.i."]
[]
[null,"Castellana Sicula, 11/07/2022",null,null,null,null,null,null,null,null,null,null,"In Fede"]
[]
[null,null,null,null,null,null,null,null,null,null,null,null,{"$f":"CONCATENATE(\"(\",E6,\")\")","v":"(Ing.  mario)"}]
[null,"Allegati:",null,null,null,null,null,null,null,null,null,null,null,null,null,null,null,null,{"$f":"CONCATENATE(\"ACPM  Vers.\",Versione,\" ©2022 SIM srl\")","v":"ACPM  Vers.2022.1.0 ©2022 SIM srl"}]
[null,"- Computo Metrico"]
[null,"- Calcolo Spesa Detraibile Ammissibile"]
[]
[]
[]
[]
[]
[]
[]
[null,"Ai sensi dell’art. 38, D.P.R. 445 del 28 dicembre 2000, la dichiarazione è resa insieme alla fotocopia, non autenticata del documento di identità del dichiarante"]

{"sheet":"Asseverazione x Spesa Ammessa","index":4,"n_rows":48,"n_cols":19,"rows_kept":48,"cut":false,"hidden":false,"merged":[[36,12,36,18],[37,12,37,18],[47,1,47,18],[30,1,30,5],[30,6,30,8],[30,14,30,17],[38,18,46,18],[26,1,26,18],[28,1,28,18],[35,1,35,5],[35,12,35,18],[20,8,20,10],[21,2,21,18],[23,5,23,7],[23,11,23,12],[24,2,24,10],[24,11,24,14],[24,15,24,17],[11,1,11,18],[12,1,12,18],[14,5,14,11],[14,15,14,18],[19,1,19,18],[10,1,10,18],[1,1,1,18],[2,1,2,18],[3,1,3,18],[5,4,5,7],[5,9,5,13],[5,15,5,16],[6,1,6,4],[7,9,7,13],[8,1,8,5],[8,7,8,10],[8,16,8,18]]}
[]
[null,"ASSEVERAZIONE DI CONGRUITA' DELLE SPESE"]
[null,"ex art. 121 comma 1-ter, lett. b) ed art. 119 comma 13 bis DL 34/2020 conv. L. 77/2020 e D.M. Costi Massimi 14/02/2022"]
[null,"(articolo 3 del D.P.R. n. 300/1992 e degli articoli 46 e 47 del D.P.R. n. 445/2000)"]
[]
[null,"Il sottoscritto",null,null,{"$f":"CONCATENATE(AbbrevTitoloTec,\" \",CognomeTec,\" \",NomeTec)","v":"Ing.  mario"},null,null,null,", nato a",{"$f":"PaeseNascTec","v":0},null,null,null,null,",  il",{"$f":"DataNascTec","v":"00:00:00"},null,"e  residente  a"]
[null,{"$f":"PaeseResTec","v":0},null,null,null,", in qualità di  tecnico asseveratore  ex  art. 121  comma 1-ter,  lett. b)  ed  art. 119  comma 13 bis  DL 34/2020"]
[null,"conv. L. 77/2020 ,  in relazione agli interventi eseguiti   a favore di ",null,null,null,null,null,null,null,{"$f":"DatiGen!D17","v":"Tizio Caio"},null,null,null,null,",  sull’unità  immobiliare    sita  a  "]
[null,{"$f":"DatiGen!D25","v":"Palermo (PA)"},null,null,null,null,", in",{"$f":"DatiGen!D24","v":"Via ZZZZZ"},null,null,null," e censita al N.C.E.U. del comune di ",null,null,null,null,{"$f":"B9","v":"Palermo (PA)"}]
[null,"al foglio",null,{"$f":"DatiGen!D26","v":12},"p.lla",{"$f":"DatiGen!H26","v":25},"sub.",{"$f":"DatiGen!K26","v":6},"Categoria",null,{"$f":"DatiGen!M26","v":"A/4 "},", relativamente ai lavori di :"]
[null,{"$f":"IF(DatiGen!B5<>\"\",DatiGen!B5,\"==========\")","v":"Sostituzione infissi nell'appartamento a piano secondo del fabbricato sito a XXXXXXXXXXXXX in via XXXXX N.27"}]
[null,{"$f":"IF(DatiGen!B6<>\"\",DatiGen!B6,\"==========\")","v":"=========="}]
[null,{"$f":"IF(DatiGen!B7<>\"\",DatiGen!B7,\"==========\")","v":"=========="}]
[null,"eseguiti dalla ditta",null,null,null,{"$f":"DatiGen!D11","v":"SIM srl"}]
[null,"di cui al titolo abilitativo,",null,null,null,{"$f":"DatiGen!D8","v":"CILA Prot. N. XXXXX del XXXXXXX"},null,null,null,null,null,null,"presentato al Comune di ",null,null,{"$f":"Q9","v":"Palermo (PA)"}]
[null,"per  l'importo  di  euro ",null,null,null,{"$f":"Controlli!N57","v":-10},", di cui al Computo Metrico allegato,"]
[null,"consapevole delle implicazioni penali previste dall’articolo 76 del D.P.R. n. 445/2000 e delle conseguenze di cui all’articolo 21 della legge "]
[null," n. 241/1990 in caso di dichiarazioni mendaci o false attestazioni, ai sensi dell’articolo 3 del D.P.R. n. 300/1992 e degli articoli 46 e 47 del "]
[null,"citato D.P.R. n. 445/2000, sotto la propria responsabilità,"]
[null,"DICHIARA"]
[null,"•","di essere in possesso della qualifica professionale di ",null,null,null,null,null,{"$f":"DatiGen!S5","v":"Ingegnere"},null,null,"e di essere iscritto all’Albo professionale :"]
[null,null,{"$f":"CONCATENATE(DatiGen!S12,\" con il numero di matricola \",DatiGen!Z12,\";\")","v":"Ordine degli Ingegneri della provincia di XXXXXXXXXXX con il numero di matricola 1;"}]
[null,"•","di essere dotato di idonea copertura assicurativa ai sensi del D.L. 34/2020 convertito nella L.77/2020, ed in particolare di aver stipulato"]
[null,null,"la polizza professionale n. A121C526113-LB con scadenza al    26/09/2022 con la compagnia assicurativa Lloyd’s Insurance Company S.A., con massimale pari a euro  500.000,00 , e che la medesima polizza è conforme ai requisiti previsti dal comma 14, del D.L. 34/2020 e s.m.i.",null,null,{"$f":"DatiGen!S14","v":"A121C526113-LB"},null,null,"    con scadenza al",null,null,{"$f":"DatiGen!Y14","v":"2022-09-26"},null,", con la  compagnia assicurativa"]
[null,null,{"$f":"DatiGen!S15","v":"Lloyd’s Insurance Company S.A."},null,null,null,null,null,null,null,null,"con massimale pari a   euro",null,null,null,{"$f":"DatiGen!Y15","v":1500000}]
[null,null,"e che la medesima polizza è conforme ai requisiti previsti dal comma 14, del D.L. 34/2020 e s.m.i.;"]
[null,"ATTESTA"]
[null,"i requisiti tecnici sulla base del progetto e dell'effettiva realizzazione;"]
[null,"ASSEVERA"]
[null,"la congruità delle spese sostenute ed effettivamente realizzate con riferimento all’intervento sopra specificato, precisando che la Spesa"]
[null,"Detraibile Ammissibile è pari ad EURO",null,null,null,null,{"$f":"IF(Controlli!N58>0,Controlli!N55,Controlli!N57)","v":-10},null,null,{"$f":"IF(Controlli!N58>0,\",\",\".\")","v":"."},{"$f":"IF(Controlli!N58>0,\"rimanendo a Carico Cliente EURO\",\"\")","v":""},null,null,null,{"$f":"IF(Controlli!N58>0,Controlli!N58,\"\")","v":""},null,null,null,{"$f":"IF(Controlli!N58>0,\".\",\"\")","v":""}]
[null,"Ai fini dell'asseverazione della congruità delle spese si è fatto riferimento ai valori massimi per tipologia di intervento determinati con i "]
[null,"criteri previsti dal punto 13,  dell’allegato A al Decreto MISE 6 agosto 2020 (c.d. Decreto Requisiti) ,  emanato in conformità   all’art. 119 "]
[null,"comma 13, lettera a) DL 34/2020 e s.m.i."]
[]
[null,"Paese, Data",null,null,null,null,null,null,null,null,null,null,"In Fede"]
[]
[null,null,null,null,null,null,null,null,null,null,null,null,{"$f":"CONCATENATE(\"(\",E6,\")\")","v":"(Ing.  mario)"}]
[null,"Allegati:",null,null,null,null,null,null,null,null,null,null,null,null,null,null,null,null,{"$f":"CONCATENATE(\"ACPM  Vers.\",Versione,\" ©2022 SIM srl\")","v":"ACPM  Vers.2022.1.0 ©2022 SIM srl"}]
[null,"- Computo Metrico"]
[null,"- Calcolo Spesa Detraibile Ammissibile"]
[]
[]
[]
[]
[]
[]
[null,"Ai sensi dell’art. 38, D.P.R. 445 del 28 dicembre 2000, la dichiarazione è resa insieme alla fotocopia, non autenticata del documento di identità del dichiarante"]

{"sheet":"Listino Base","index":5,"n_rows":14,"n_cols":6,"rows_kept":14,"cut":false,"hidden":false,"merged":[]}
[]
[null,"Tariffa","Descrizione Estesa","Descrizione Sintetica","U.M.","Prezzo Un."]
[null,"DEI A25114","Smontaggio di infissi esterni in legno come finestre, sportelli a vetri, persiane ecc., calcolato sulla superficie, inclusa l'eventuale parte vetrata, compreso telaio, controtelaio, smuratura delle grappe o dei tasselli di tenuta ed eventuale taglio a sezione degli elementi","Rimozione infissi esistenti, sportelli, persiane, ecc., calcolato sulla superficie, inclusa parte vetrata, telaio, controtelaio, smuratura","mq",19.86]
[null,"21.01.25","Trasporto alle pubbliche discariche del comune in cui si eseguono i lavori o nella discarica del comprensorio di cui fa parte il comune medesimo  o  su  aree  autorizzate  al  conferimento,  di  sfabbricidi classificabili non inquinanti provenienti da lavori eseguiti all’interno del perimetro del centro edificato, per mezzo di autocarri a cassone scarrabile,  compreso  il  nolo  del  cassone,  esclusi  gli   oneri  di conferimento a discarica.","Trasporto alle pubbliche discariche del comune in cui si eseguono i lavori ….,  esclusi  gli   oneri  di conferimento a discarica.","mc",32.26]
[null,"DEI - A25136.a","Compenso alle discariche autorizzate e realizzate secondo il DLgs 13 gennaio 2003, n. 36, per conferimento di materiale di risulta proveniente da scavi o demolizioni, escluso il costo relativo alla caratterizzazione del rifiuto:\n- rifiuti ammissibili in discarica per rifiuti inerti (art. 5 DM 27 settembre 2010)","Oneri conferimento a discarica","ton",18]
[null,"DEI C25076e","Serramento realizzato con profili estrusi di pvc prodotti secondo la norma DIN 7748, esenti da cadmio, autoestinguenti, classe 1 di reazione al fuoco; sistema caratterizzato da profili formati da 5 camere interne, dimensione minima in profondità 70 mm, trasmittanza termica del nodo Uf = 1,30 W/m2K, rinforzati con profili in acciaio zincato spessore 15/10, 2 guarnizioni in TPE coestruse e saldate negli angoli; montato su controtelaio, fornito e posto in opera, compresi maniglie, cerniere, meccanismi di manovra, dispositivi di sicurezza contro le false manovre e quant'altro necessario per il funzionamento, riscontro inferiore antiscasso, con carrello di sollevamento per agevolare la chiusura a battente, cerniere inferiori e superiori portata 130 kg simmetriche e quant'altro necessario per il funzionamento, anta dormiente (no ribalta) con cerniere centrali a scomparsa per tenuta anta-telaio, con vetrocamera doppio vetro con canalina, con prestazioni termiche e acustiche idonee, permeabilità all'aria classe 4 secondo la norma UNI EN 12207, tenuta all'acqua classe 7A secondo la norma UNI 12208, resistenza al vento classe B2 secondo la norma UNI 12210, idoneo per zona climatica C con trasmittanza termica Uw ≤ 1,75 W/m2K, idoneo per zona climatica D con trasmittanza termica Uw ≤ 1,67 W/m2K, prestazione acustica Rw = 36 dB, copriprofili interni sui 3 lati delle dimensioni di 60 × 7 mm, incluso il trasporto, esclusi il controtelaio, il tiro ai piani ed eventuali assistenze murarie: \nPortafinestra 2 ante, a battente, telaio su 4 lati, con traverso orizzontale","Portafinestra PVC 2 ante, a battente N.4 x 1,18 x 2,29","mq",527.39]
[null,"AP.01","Zanzariera laterale a molla N.4 x 1,18 x 2,29","Zanzariera laterale a molla N.4 x 1,18 x 2,29","mq",40]
[null,"C25076a","Serramento realizzato con profili estrusi di pvc prodotti secondo la norma DIN 7748, esenti da cadmio, autoestinguenti, classe 1 di reazione al fuoco; sistema caratterizzato da profili formati da 5 camere interne, dimensione minima in profondità 70 mm, trasmittanza termica del nodo Uf = 1,30 W/m2K, rinforzati con profili in acciaio zincato spessore 15/10, 2 guarnizioni in TPE coestruse e saldate negli angoli; montato su controtelaio, fornito e posto in opera, compresi maniglie, cerniere, meccanismi di manovra, dispositivi di sicurezza contro le false manovre e quant'altro necessario per il funzionamento, riscontro inferiore antiscasso, con carrello di sollevamento per agevolare la chiusura a battente, cerniere inferiori e superiori portata 130 kg simmetriche e quant'altro necessario per il funzionamento, anta dormiente (no ribalta) con cerniere centrali a scomparsa per tenuta anta-telaio, con vetrocamera doppio vetro con canalina, con prestazioni termiche e acustiche idonee, permeabilità all'aria classe 4 secondo la norma UNI EN 12207, tenuta all'acqua classe 7A secondo la norma UNI 12208, resistenza al vento classe B2 secondo la norma UNI 12210, idoneo per zona climatica C con trasmittanza termica Uw ≤ 1,75 W/m2K, idoneo per zona climatica D con trasmittanza termica Uw ≤ 1,67 W/m2K, prestazione acustica Rw = 36 dB, copriprofili interni sui 3 lati delle dimensioni di 60 × 7 mm, incluso il trasporto, esclusi il controtelaio, il tiro ai piani ed eventuali assistenze murarie: \nFinestra, a telaio fisso","Finestra PVC a 1 anta, a telaio fisso","mq",318.58]
[null,"C25076b","Serramento realizzato con profili estrusi di pvc prodotti secondo la norma DIN 7748, esenti da cadmio, autoestinguenti, classe 1 di reazione al fuoco; sistema caratterizzato da profili formati da 5 camere interne, dimensione minima in profondità 70 mm, trasmittanza termica del nodo Uf = 1,30 W/m2K, rinforzati con profili in acciaio zincato spessore 15/10, 2 guarnizioni in TPE coestruse e saldate negli angoli; montato su controtelaio, fornito e posto in opera, compresi maniglie, cerniere, meccanismi di manovra, dispositivi di sicurezza contro le false manovre e quant'altro necessario per il funzionamento, riscontro inferiore antiscasso, con carrello di sollevamento per agevolare la chiusura a battente, cerniere inferiori e superiori portata 130 kg simmetriche e quant'altro necessario per il funzionamento, anta dormiente (no ribalta) con cerniere centrali a scomparsa per tenuta anta-telaio, con vetrocamera doppio vetro con canalina, con prestazioni termiche e acustiche idonee, permeabilità all'aria classe 4 secondo la norma UNI EN 12207, tenuta all'acqua classe 7A secondo la norma UNI 12208, resistenza al vento classe B2 secondo la norma UNI 12210, idoneo per zona climatica C con trasmittanza termica Uw ≤ 1,75 W/m2K, idoneo per zona climatica D con trasmittanza termica Uw ≤ 1,67 W/m2K, prestazione acustica Rw = 36 dB, copriprofili interni sui 3 lati delle dimensioni di 60 × 7 mm, incluso il trasporto, esclusi il controtelaio, il tiro ai piani ed eventuali assistenze murarie: \nFinestra a 1 anta, a battente","Finestra PVC a 1 anta, a battente N.2 x 0,66 x 1,29","mq",445.52]
[null,"DEI C25126","Sovrapprezzo per ciascuna anta a ribalta","Sovrapprezzo per ciascuna anta ribalta N.4+2","cad",70]
[null,"DEI C13115b","Controtelaio in acciaio zincato a caldo, completo di controventi e idonee grappe per l'ancoraggio alla muratura, valutato al m2 di luce vano (minimo fatturabile 1,2 m2):\nProfondità 101 ÷ 150 mm","Controtelai in acciaio zincato a caldo L=10/15 cm","mq",36.96]
[null,"DEI A25135b","Tiro in alto o calo in basso di materiali a mezzo di elevatore meccanico compreso l'onere di carico e scarico dei materiali:\nValutazione a volume","Tiro in alto  o  Tiro in basso mc. 2 x (10,81+1,70)x0,10","mc",34.82]
[null,"DEI C43024","Vetrata isolante ad elevate prestazioni energetiche, con cristallo bassoemissivo con emissività ε pari a 0,01 (trasmittanza termica Ug fino a 1,0 W/m2 K), composta da due lastre di stratificato di sicurezza di cui una chiara 33.1 ed una bassoemissiva 33.1, intercapedine in aria disidratata 12-15 mm","Vetrocamera 6/7 + 16 + 6/7 antinfortunistico selettivo con Argon","mq",145.5]
[null,"DEI N04137a","Sollevatori telescopici con cestelli posacentine da: 3.000kg: A Caldo","Sollevatore telescopico con cestello","ora",56.32]

{"sheet":"Decreto MITE","index":6,"n_rows":0,"n_cols":0,"rows_kept":0,"cut":false,"hidden":false,"merged":[]}

{"sheet":"Allegato A","index":7,"n_rows":72,"n_cols":13,"rows_kept":72,"cut":false,"hidden":false,"merged":[]}
[]
[]
[]
[]
[]
[]
[]
[]
[]
[]
[]
[]
[]
[]
[]
[]
[]
[]
[]
[]
[]
[]
[]
[]
[]
[]
[]
[]
[]
[]
[]
[]
[]
[]
[]
[]
[]
[]
[]
[]
[]
[]
[]
[]
[]
[]
[]
[]
[]
[]
[]
[null,null,null,null,null,null,null,null,"Costo Max","Rif.","U.M.","DL.34/2020","Indicazioni"]
["Isolamento Coperture - Esterno",null,null,null,null,null,null,null,276,"Superficie","mq.",50000,"Fornitura dell’isolante termico, del sistema di ancoraggio, tutti i materiali che concorrono alla realizzazione dell’intonaco esterno di copertura dell’isolante, le tegole, etc. "]
["Isolamento Coperture - Interno",null,null,null,null,null,null,null,120,"Superficie","mq.",50000,"Fornitura dell’isolante termico, del sistema di ancoraggio, tutti i materiali che concorrono alla realizzazione dell’intonaco esterno di copertura dell’isolante, le tegole, etc. "]
["Isolamento Coperture - Copertura ventilata",null,null,null,null,null,null,null,300,"Superficie","mq.",50000,"Fornitura dell’isolante termico, del sistema di ancoraggio, tutti i materiali che concorrono alla realizzazione dell’intonaco esterno di copertura dell’isolante, le tegole, etc. "]
["Isolamento pavimenti - Esterno",null,null,null,null,null,null,null,144,"Superficie","mq.",50000,"Fornitura dell’isolante termico, del sistema di ancoraggio, tutti i materiali che concorrono alla realizzazione dell’intonaco esterno di copertura dell’isolante, la pavimentazione (non di pregio), etc. "]
["Isolamento pavimenti - Interno/Terreno",null,null,null,null,null,null,null,180,"Superficie","mq.",50000,"Fornitura dell’isolante termico, del sistema di ancoraggio, tutti i materiali che concorrono alla realizzazione dell’intonaco esterno di copertura dell’isolante, la pavimentazione (non di pregio), etc. "]
["Isolamento pareti perimetrali - Zone A, B e C - Esterno/Diffusa",null,null,null,null,null,null,null,180,"Superficie","mq.",50000,"Fornitura dell’isolante termico, del sistema di ancoraggio, tutti i materiali che concorrono alla realizzazione dell’intonaco esterno di copertura dell’isolante, etc. "]
["Isolamento pareti perimetrali - Zone A, B e C - Interno",null,null,null,null,null,null,null,96,"Superficie","mq.",50000,"Fornitura dell’isolante termico, del sistema di ancoraggio, tutti i materiali che concorrono alla realizzazione dell’intonaco esterno di copertura dell’isolante, etc. "]
["Isolamento pareti perimetrali - Zone A, B e C - Parete Ventilata",null,null,null,null,null,null,null,240,"Superficie","mq.",50000,"Fornitura dell’isolante termico, del sistema di ancoraggio, tutti i materiali che concorrono alla realizzazione dell’intonaco esterno di copertura dell’isolante, etc. "]
["Isolamento pareti perimetrali - Zone D, E ed F - Esterno/Diffusa",null,null,null,null,null,null,null,195,"Superficie","mq.",50000,"Fornitura dell’isolante termico, del sistema di ancoraggio, tutti i materiali che concorrono alla realizzazione dell’intonaco esterno di copertura dell’isolante, etc. "]
["Isolamento pareti perimetrali - Zone D, E ed F - Interno",null,null,null,null,null,null,null,104,"Superficie","mq.",50000,"Fornitura dell’isolante termico, del sistema di ancoraggio, tutti i materiali che concorrono alla realizzazione dell’intonaco esterno di copertura dell’isolante, etc. "]
["Isolamento pareti perimetrali - Zone D, E ed F - Parete Ventilata",null,null,null,null,null,null,null,260,"Superficie","mq.",50000,"Fornitura dell’isolante termico, del sistema di ancoraggio, tutti i materiali che concorrono alla realizzazione dell’intonaco esterno di copertura dell’isolante, etc. "]
["Sostituzione chiusure trasparenti / Infissi - Zone A, B e C - Serramento",null,null,null,null,null,null,null,660,"Superficie","mq.",54545,"Fornitura di infisso, telaio, controtelaio, celetto, cassonetto, tapparella, rullo avvolgibile, avvolgitore, persiane e, ove previsto, componentistica dell’impianto elettrico, etc."]
["Sostituzione chiusure trasparenti / Infissi - Zone A, B e C - Serramento + chiusura oscurante",null,null,null,null,null,null,null,780,"Superficie","mq.",54545,"Fornitura di infisso, telaio, controtelaio, celetto, cassonetto, tapparella, rullo avvolgibile, avvolgitore, persiane e, ove previsto, componentistica dell’impianto elettrico, etc."]
["Sostituzione chiusure trasparenti / Infissi - Zone D, E ed F - Serramento",null,null,null,null,null,null,null,780,"Superficie","mq.",54545,"Fornitura di infisso, telaio, controtelaio, celetto, cassonetto, tapparella, rullo avvolgibile, avvolgitore, persiane e, ove previsto, componentistica dell’impianto elettrico, etc."]
["Sostituzione chiusure trasparenti / Infissi - Zone D, E ed F - Serramento + chiusura oscurante",null,null,null,null,null,null,null,900,"Superficie","mq.",54545,"Fornitura di infisso, telaio, controtelaio, celetto, cassonetto, tapparella, rullo avvolgibile, avvolgitore, persiane e, ove previsto, componentistica dell’impianto elettrico, etc."]
["Installazione di schermature solari e/o ombreggiamenti mobili ",null,null,null,null,null,null,null,276,"Superficie","mq.",null,"Fornitura della schermatura solare e/o ombreggiante, il sistema di montaggio e, ove previsto, la componentistica dell’impianto elettrico, etc."]
["Impianti a Collettori Solari - Scoperti",null,null,null,null,null,null,null,900,"Superficie","mq.",null,"Fornitura del pannello solare, sistema di montaggio, serbatoio di accumulo, componentistica dell’impianto idraulico e, ove previsto, dell’impianto elettrico, i sistemi di pompaggio, etc."]
["Impianti a Collettori Solari - Piani vetrati",null,null,null,null,null,null,null,1200,"Superficie","mq.",null,"Fornitura del pannello solare, sistema di montaggio, serbatoio di accumulo, componentistica dell’impianto idraulico e, ove previsto, dell’impianto elettrico, i sistemi di pompaggio, etc."]
["Impianti a Collettori Solari - Sottovuoto a concentrazione",null,null,null,null,null,null,null,1500,"Superficie","mq.",null,"Fornitura del pannello solare, sistema di montaggio, serbatoio di accumulo, componentistica dell’impianto idraulico e, ove previsto, dell’impianto elettrico, i sistemi di pompaggio, etc."]
["Impianti di riscaldamento con caldaie ad acqua a condensazione e/o generatori di aria calda a condensazione",null,null,null,null,null,null,null,240,"Potenza nominale","kWt"]

{"sheet":"FAQ Enea e MITE","index":8,"n_rows":0,"n_cols":0,"rows_kept":0,"cut":false,"hidden":false,"merged":[]}